[Event "FIDE World Rapid Chess Championship 2021"]
[White "Samunenkov, Ihor"]
[Black "Mastrovasilis, Dimitrios"]
[WhiteFideId "14187086"]
[BlackFideId "4202694"]
[WhiteElo "2259"]
[BlackElo "2534"]
[Result "0-1"]
[Round "09"]
[TimeControl "900+10"]
[Date "2021.12.27"]
[WhiteClock "0:00:23"]
[BlackClock "0:00:14"]

1. d4 {[%clk 0:15:00]}  d5 {[%clk 0:15:00]} 2. Nf3 {[%clk 0:15:00]}  Nf6 {[%clk 0:15:00]} 3. g3 {[%clk 0:15:00]}  c6 {[%clk 0:15:00]} 4. c4 {[%clk 0:15:00]}  Bg4 {[%clk 0:15:00]} 5. Bg2 {[%clk 0:15:00]}  e6 {[%clk 0:15:00]} 6. h3 {[%clk 0:15:00]}  Bh5 {[%clk 0:15:00]} 7. O-O {[%clk 0:15:02]}  Nbd7 {[%clk 0:14:38]} 8. cxd5 {[%clk 0:15:02]}  cxd5 {[%clk 0:14:38]} 9. Nc3 {[%clk 0:14:55]}  Be7 {[%clk 0:13:38]} 10. Qb3 {[%clk 0:10:45]}  Qb6 {[%clk 0:13:44]} 11. Qxb6 {[%clk 0:10:45]}  Nxb6 {[%clk 0:13:44]} 12. Ne5 {[%clk 0:10:45]}  O-O {[%clk 0:12:58]} 13. g4 {[%clk 0:10:04]}  Bg6 {[%clk 0:09:49]} 14. g5 {[%clk 0:06:51]}  Ne8 {[%clk 0:09:57]} 15. Nxg6 {[%clk 0:06:51]}  hxg6 {[%clk 0:07:43]} 16. Bf4 {[%clk 0:06:51]}  Bd6 {[%clk 0:07:43]} 17. Bxd6 {[%clk 0:06:51]}  Nxd6 {[%clk 0:07:43]} 18. Rac1 {[%clk 0:04:22]}  Rac8 {[%clk 0:07:38]} 19. e3 {[%clk 0:04:22]}  Rc7 {[%clk 0:07:00]} 20. Ne2 {[%clk 0:03:58]}  Rfc8 {[%clk 0:03:36]} 21. Rxc7 {[%clk 0:03:35]}  Rxc7 {[%clk 0:03:36]} 22. Rc1 {[%clk 0:03:35]}  Rxc1+ {[%clk 0:03:36]} 23. Nxc1 {[%clk 0:03:35]}  f6 {[%clk 0:03:36]} 24. Nd3 {[%clk 0:03:35]}  fxg5 {[%clk 0:03:36]} 25. Kf1 {[%clk 0:03:35]}  Nd7 {[%clk 0:02:31]} 26. Ke2 {[%clk 0:02:46]}  Kf7 {[%clk 0:02:31]} 27. Nc5 {[%clk 0:01:20]}  Ke7 {[%clk 0:02:27]} 28. Kd3 {[%clk 0:01:20]}  b6 {[%clk 0:02:27]} 29. Nb3 {[%clk 0:01:20]}  Nf6 {[%clk 0:02:27]} 30. Nd2 {[%clk 0:01:20]}  g4 {[%clk 0:02:27]} 31. hxg4 {[%clk 0:00:22]}  Nxg4 {[%clk 0:01:14]} 32. f3 {[%clk 0:00:22]}  Nf6 {[%clk 0:01:14]} 33. Bh3 {[%clk 0:00:22]}  g5 {[%clk 0:01:14]} 34. Nf1 {[%clk 0:00:22]}  Nf5 {[%clk 0:01:14]} 35. Nh2 {[%clk 0:00:22]}  Nh4 {[%clk 0:01:14]} 36. Ke2 {[%clk 0:00:22]}  Kd6 {[%clk 0:01:14]} 37. Ng4 {[%clk 0:00:22]}  Nxg4 {[%clk 0:00:33]} 38. Bxg4 {[%clk 0:00:41]}  e5 {[%clk 0:00:33]} 39. Kd3 {[%clk 0:00:41]}  Ng6 {[%clk 0:00:33]} 40. Bf5 {[%clk 0:00:41]}  Ne7 {[%clk 0:00:33]} 41. Bg4 {[%clk 0:00:41]}  Nc6 {[%clk 0:00:33]} 42. a3 {[%clk 0:00:41]}  Na5 {[%clk 0:00:33]} 43. e4 {[%clk 0:00:41]}  Nc6 {[%clk 0:00:33]} 44. dxe5+ {[%clk 0:00:23]}  Nxe5+ {[%clk 0:00:14]} 45. Kd4 {[%clk 0:00:23]}  Nc6+ {[%clk 0:00:14]} 46. Kd3 {[%clk 0:00:23]}  Ke5 {[%clk 0:00:14]} 47. exd5 {[%clk 0:00:23]}  Kxd5 {[%clk 0:00:14]} 48. b3 {[%clk 0:00:23]}  Ne5+ {[%clk 0:00:14]} 49. Ke3 {[%clk 0:00:23]}  Nxg4+ {[%clk 0:00:14]} 50. fxg4 {[%clk 0:00:23]}  Ke5 {[%clk 0:00:14]} 51. a4 {[%clk 0:00:23]}  a5 {[%clk 0:00:14]} 0-1


[Site "http://www.Chess.com"]

[Event "FIDE World Rapid Chess Championship 2021"]
[White "Oparin, Grigoriy"]
[Black "Nguyen, Thai Dai Van"]
[WhiteFideId "24125890"]
[BlackFideId "358878"]
[WhiteElo "2725"]
[BlackElo "2488"]
[Result "1/2-1/2"]
[Round "09"]
[TimeControl "900+10"]
[Date "2021.12.27"]
[WhiteClock "0:00:34"]
[BlackClock "0:01:39"]

1. e4 {[%clk 0:15:00]}  e5 {[%clk 0:15:00]} 2. Bc4 {[%clk 0:15:00]}  Nf6 {[%clk 0:15:00]} 3. d3 {[%clk 0:15:00]}  c6 {[%clk 0:15:00]} 4. Nf3 {[%clk 0:15:00]}  d5 {[%clk 0:15:00]} 5. Bb3 {[%clk 0:15:00]}  a5 {[%clk 0:15:00]} 6. a4 {[%clk 0:15:00]}  Bb4+ {[%clk 0:15:00]} 7. c3 {[%clk 0:15:00]}  Bd6 {[%clk 0:15:00]} 8. exd5 {[%clk 0:15:00]}  cxd5 {[%clk 0:15:00]} 9. Bg5 {[%clk 0:15:00]}  Be6 {[%clk 0:15:01]} 10. Na3 {[%clk 0:15:36]}  Nbd7 {[%clk 0:15:01]} 11. Nb5 {[%clk 0:15:36]}  Bb8 {[%clk 0:15:01]} 12. d4 {[%clk 0:15:36]}  e4 {[%clk 0:15:01]} 13. Nd2 {[%clk 0:15:36]}  h6 {[%clk 0:15:01]} 14. Bh4 {[%clk 0:15:36]}  O-O {[%clk 0:15:01]} 15. Nf1 {[%clk 0:15:36]}  Ra6 {[%clk 0:13:55]} 16. Ne3 {[%clk 0:15:45]}  Bf4 {[%clk 0:12:19]} 17. Qe2 {[%clk 0:15:51]}  Qb8 {[%clk 0:09:04]} 18. Bg3 {[%clk 0:14:56]}  Rc6 {[%clk 0:09:04]} 19. O-O {[%clk 0:14:56]}  Re8 {[%clk 0:09:04]} 20. Bxf4 {[%clk 0:14:56]}  Qxf4 {[%clk 0:09:04]} 21. f3 {[%clk 0:14:56]}  exf3 {[%clk 0:08:42]} 22. Rxf3 {[%clk 0:13:44]}  Qh4 {[%clk 0:08:42]} 23. Qd3 {[%clk 0:13:44]}  Bg4 {[%clk 0:03:38]} 24. Rg3 {[%clk 0:13:06]}  Be6 {[%clk 0:03:38]} 25. Rf1 {[%clk 0:05:22]}  Ne4 {[%clk 0:02:53]} 26. Rgf3 {[%clk 0:05:22]}  Ndf6 {[%clk 0:02:53]} 27. Rf4 {[%clk 0:05:22]}  Qg5 {[%clk 0:02:53]} 28. Bc2 {[%clk 0:05:22]}  h5 {[%clk 0:02:53]} 29. Nf5 {[%clk 0:04:47]}  Bxf5 {[%clk 0:02:29]} 30. Rxf5 {[%clk 0:04:47]}  Qh6 {[%clk 0:02:13]} 31. R5f4 {[%clk 0:03:00]}  Re7 {[%clk 0:02:13]} 32. b3 {[%clk 0:03:00]}  Nd6 {[%clk 0:02:13]} 33. Rxf6 {[%clk 0:03:00]}  gxf6 {[%clk 0:02:13]} 34. Nxd6 {[%clk 0:03:00]}  Rxd6 {[%clk 0:02:13]} 35. Qg3+ {[%clk 0:03:00]}  Qg5 {[%clk 0:02:13]} 36. Qxd6 {[%clk 0:03:00]}  Re2 {[%clk 0:02:13]} 37. Qg3 {[%clk 0:01:51]}  Qxg3 {[%clk 0:01:42]} 38. hxg3 {[%clk 0:01:51]}  Rxc2 {[%clk 0:01:42]} 39. Rxf6 {[%clk 0:01:51]}  Rxc3 {[%clk 0:01:42]} 40. Rb6 {[%clk 0:01:51]}  Rd3 {[%clk 0:01:13]} 41. Rxb7 {[%clk 0:00:48]}  Rxd4 {[%clk 0:01:13]} 42. Rb5 {[%clk 0:00:48]}  Rd3 {[%clk 0:01:13]} 43. Rxa5 {[%clk 0:00:48]}  Rxb3 {[%clk 0:01:13]} 44. Rxd5 {[%clk 0:00:48]}  Rxg3 {[%clk 0:01:13]} 45. Rxh5 {[%clk 0:00:48]}  Ra3 {[%clk 0:01:13]} 46. Ra5 {[%clk 0:00:48]}  Kg7 {[%clk 0:01:13]} 47. Kh2 {[%clk 0:00:48]}  Kg6 {[%clk 0:01:13]} 48. g3 {[%clk 0:00:48]}  f5 {[%clk 0:01:13]} 49. Ra8 {[%clk 0:00:48]}  Kg5 {[%clk 0:01:13]} 50. Kg2 {[%clk 0:00:34]}  Kg4 {[%clk 0:01:39]} 51. Rg8+ {[%clk 0:00:34]}  Kh5 {[%clk 0:01:39]} 52. Rh8+ {[%clk 0:00:34]}  Kg5 {[%clk 0:01:39]} 53. Rg8+ {[%clk 0:00:34]} 1/2-1/2


[Site "http://www.Chess.com"]

[Event "FIDE World Rapid Chess Championship 2021"]
[White "Michalik, Peter"]
[Black "Harikrishna, Pentala"]
[WhiteFideId "14907526"]
[BlackFideId "5007003"]
[WhiteElo "2515"]
[BlackElo "2705"]
[Result "1/2-1/2"]
[Round "09"]
[TimeControl "900+10"]
[Date "2021.12.27"]
[WhiteClock "0:01:21"]
[BlackClock "0:01:07"]

1. e4 {[%clk 0:15:00]}  e6 {[%clk 0:15:00]} 2. d4 {[%clk 0:15:00]}  d5 {[%clk 0:15:00]} 3. Nc3 {[%clk 0:15:00]}  Bb4 {[%clk 0:15:00]} 4. exd5 {[%clk 0:15:00]}  exd5 {[%clk 0:15:00]} 5. Bd3 {[%clk 0:15:00]}  Nf6 {[%clk 0:15:00]} 6. Ne2 {[%clk 0:15:00]}  O-O {[%clk 0:15:00]} 7. O-O {[%clk 0:15:00]}  Re8 {[%clk 0:15:00]} 8. h3 {[%clk 0:15:00]}  c6 {[%clk 0:15:00]} 9. Bf4 {[%clk 0:15:00]}  Nbd7 {[%clk 0:13:30]} 10. a3 {[%clk 0:15:08]}  Ba5 {[%clk 0:13:30]} 11. Bg3 {[%clk 0:15:08]}  Ne4 {[%clk 0:13:30]} 12. Nxe4 {[%clk 0:15:08]}  dxe4 {[%clk 0:13:30]} 13. Bc4 {[%clk 0:15:08]}  Bc7 {[%clk 0:13:30]} 14. Bb3 {[%clk 0:15:08]}  Nf6 {[%clk 0:13:30]} 15. c3 {[%clk 0:15:08]}  Bf5 {[%clk 0:13:30]} 16. Qd2 {[%clk 0:13:14]}  Bg6 {[%clk 0:13:08]} 17. Qe3 {[%clk 0:13:14]}  a5 {[%clk 0:13:08]} 18. c4 {[%clk 0:13:01]}  a4 {[%clk 0:11:10]} 19. Ba2 {[%clk 0:13:01]}  b5 {[%clk 0:11:10]} 20. cxb5 {[%clk 0:13:01]}  cxb5 {[%clk 0:11:10]} 21. Bxc7 {[%clk 0:13:01]}  Qxc7 {[%clk 0:11:10]} 22. Rac1 {[%clk 0:13:01]}  Qb7 {[%clk 0:11:10]} 23. Rc5 {[%clk 0:12:33]}  b4 {[%clk 0:10:10]} 24. Bc4 {[%clk 0:12:33]}  Rab8 {[%clk 0:10:08]} 25. Rc1 {[%clk 0:10:24]}  Red8 {[%clk 0:10:08]} 26. Nf4 {[%clk 0:10:24]}  Qd7 {[%clk 0:10:08]} 27. Nd5 {[%clk 0:09:08]}  Nxd5 {[%clk 0:08:34]} 28. Rxd5 {[%clk 0:09:08]}  Qe7 {[%clk 0:08:34]} 29. Re5 {[%clk 0:09:08]}  Qf6 {[%clk 0:08:11]} 30. Bd5 {[%clk 0:08:13]}  h6 {[%clk 0:08:11]} 31. axb4 {[%clk 0:07:39]}  Kh7 {[%clk 0:06:19]} 32. Rc6 {[%clk 0:06:26]}  Rd6 {[%clk 0:06:28]} 33. Qc3 {[%clk 0:06:26]}  Qd8 {[%clk 0:06:28]} 34. Qc5 {[%clk 0:06:26]}  Rd7 {[%clk 0:06:28]} 35. Bxe4 {[%clk 0:03:33]}  Rxd4 {[%clk 0:04:29]} 36. Bxg6+ {[%clk 0:02:05]}  fxg6 {[%clk 0:04:29]} 37. b5 {[%clk 0:02:05]}  Rb7 {[%clk 0:04:29]} 38. Qc2 {[%clk 0:02:05]}  Rd1+ {[%clk 0:04:29]} 39. Kh2 {[%clk 0:02:05]}  Qd3 {[%clk 0:04:29]} 40. Qxa4 {[%clk 0:02:05]}  Qb1 {[%clk 0:03:39]} 41. Qc2 {[%clk 0:01:02]}  Qxc2 {[%clk 0:03:39]} 42. Rxc2 {[%clk 0:01:02]}  Rd4 {[%clk 0:03:39]} 43. Kg3 {[%clk 0:01:02]}  Rb4 {[%clk 0:01:54]} 44. Kf3 {[%clk 0:01:05]}  g5 {[%clk 0:01:54]} 45. Ke3 {[%clk 0:01:05]}  g4 {[%clk 0:01:54]} 46. h4 {[%clk 0:01:05]}  g3 {[%clk 0:01:54]} 47. fxg3 {[%clk 0:01:05]}  Rb3+ {[%clk 0:01:54]} 48. Kf4 {[%clk 0:00:56]}  Rf7+ {[%clk 0:01:03]} 49. Kg4 {[%clk 0:00:56]}  Rf1 {[%clk 0:01:03]} 50. Rf5 {[%clk 0:00:56]}  Rd1 {[%clk 0:01:03]} 51. Rf3 {[%clk 0:00:56]}  Rxb5 {[%clk 0:01:03]} 52. b3 {[%clk 0:00:56]}  h5+ {[%clk 0:01:03]} 53. Kf4 {[%clk 0:00:56]}  Rd4+ {[%clk 0:01:03]} 54. Ke3 {[%clk 0:00:56]}  Rdb4 {[%clk 0:01:03]} 55. Kf2 {[%clk 0:00:56]}  Rxb3 {[%clk 0:01:03]} 56. Rxb3 {[%clk 0:00:56]}  Rxb3 {[%clk 0:01:03]} 57. Rc5 {[%clk 0:00:56]}  g6 {[%clk 0:01:03]} 58. Rc7+ {[%clk 0:00:56]}  Kh6 {[%clk 0:01:03]} 59. Re7 {[%clk 0:00:56]}  Rb2+ {[%clk 0:01:07]} 60. Kf3 {[%clk 0:01:16]}  Rb3+ {[%clk 0:01:07]} 61. Re3 {[%clk 0:01:16]}  Rb2 {[%clk 0:01:07]} 62. Re4 {[%clk 0:01:16]}  Rb3+ {[%clk 0:01:07]} 63. Kf2 {[%clk 0:01:16]}  Rb2+ {[%clk 0:01:07]} 64. Kg1 {[%clk 0:01:16]}  Rb6 {[%clk 0:01:07]} 65. Re5 {[%clk 0:01:16]}  Rb4 {[%clk 0:01:07]} 66. Kh2 {[%clk 0:01:16]}  Ra4 {[%clk 0:01:07]} 67. Re7 {[%clk 0:01:16]}  Rb4 {[%clk 0:01:07]} 68. Rf7 {[%clk 0:01:16]}  g5 {[%clk 0:01:07]} 69. Rf6+ {[%clk 0:01:16]}  Kg7 {[%clk 0:01:07]} 70. hxg5 {[%clk 0:01:16]}  Rb5 {[%clk 0:01:07]} 71. Rf4 {[%clk 0:01:16]}  Kg6 {[%clk 0:01:07]} 72. Rd4 {[%clk 0:01:21]} 1/2-1/2


[Site "http://www.Chess.com"]

[Event "FIDE World Rapid Chess Championship 2021"]
[White "Dziuba, Marcin"]
[Black "Mamedov, Rauf"]
[WhiteFideId "1112953"]
[BlackFideId "13401653"]
[WhiteElo "2424"]
[BlackElo "2690"]
[Result "1-0"]
[Round "09"]
[TimeControl "900+10"]
[Date "2021.12.27"]
[WhiteClock "0:00:00"]
[BlackClock "0:00:00"]

1. d4 {[%clk 0:15:00]}  Nf6 {[%clk 0:15:00]} 2. c4 {[%clk 0:15:00]}  g6 {[%clk 0:15:00]} 3. Nc3 {[%clk 0:15:00]}  Bg7 {[%clk 0:15:00]} 4. e4 {[%clk 0:15:00]}  d6 {[%clk 0:15:00]} 5. Nf3 {[%clk 0:15:00]}  O-O {[%clk 0:15:00]} 6. Be2 {[%clk 0:15:00]}  Na6 {[%clk 0:15:00]} 7. O-O {[%clk 0:15:00]}  e5 {[%clk 0:15:00]} 8. Be3 {[%clk 0:15:00]}  Qe8 {[%clk 0:15:00]} 9. dxe5 {[%clk 0:15:00]}  dxe5 {[%clk 0:15:00]} 10. a3 {[%clk 0:13:26]}  Ng4 {[%clk 0:15:24]} 11. Bd2 {[%clk 0:13:26]}  Nc5 {[%clk 0:15:24]} 12. b4 {[%clk 0:11:09]}  Ne6 {[%clk 0:14:58]} 13. h3 {[%clk 0:11:09]}  Nf6 {[%clk 0:14:58]} 14. Nxe5 {[%clk 0:11:09]}  Nd4 {[%clk 0:14:58]} 15. f4 {[%clk 0:10:05]}  Nxe4 {[%clk 0:14:00]} 16. Nxe4 {[%clk 0:10:05]}  f6 {[%clk 0:14:00]} 17. Nxf6+ {[%clk 0:08:04]}  Bxf6 {[%clk 0:13:33]} 18. Bc3 {[%clk 0:08:04]}  Nf5 {[%clk 0:13:33]} 19. Qd3 {[%clk 0:08:04]}  Be6 {[%clk 0:13:33]} 20. Ng4 {[%clk 0:08:04]}  Bh4 {[%clk 0:13:44]} 21. Bf3 {[%clk 0:05:42]}  Rd8 {[%clk 0:13:44]} 22. Qe4 {[%clk 0:05:42]}  h5 {[%clk 0:13:44]} 23. Ne5 {[%clk 0:04:37]}  Bf6 {[%clk 0:12:18]} 24. Qxb7 {[%clk 0:04:37]}  Nd4 {[%clk 0:12:18]} 25. Rae1 {[%clk 0:04:37]}  Nc2 {[%clk 0:11:17]} 26. Re2 {[%clk 0:03:36]}  Nd4 {[%clk 0:11:17]} 27. Bxd4 {[%clk 0:03:57]}  Rxd4 {[%clk 0:08:31]} 28. Qxc7 {[%clk 0:03:57]}  Rxf4 {[%clk 0:08:31]} 29. c5 {[%clk 0:03:57]}  Bg7 {[%clk 0:04:37]} 30. Nc6 {[%clk 0:02:12]}  Kh7 {[%clk 0:04:37]} 31. Qd6 {[%clk 0:02:12]}  R8f6 {[%clk 0:04:14]} 32. Nd8 {[%clk 0:00:06]}  Bd7 {[%clk 0:02:30]} 33. Rxe8 {[%clk 0:00:00]}  Rxd6 {[%clk 0:02:30]} 34. cxd6 {[%clk 0:00:00]}  Bxe8 {[%clk 0:02:30]} 35. Ne6 {[%clk 0:00:00]}  Rf6 {[%clk 0:02:30]} 36. Bd5 {[%clk 0:00:00]}  Rxf1+ {[%clk 0:00:51]} 37. Kxf1 {[%clk 0:00:00]}  Bh6 {[%clk 0:00:51]} 38. h4 {[%clk 0:00:00]}  Kh8 {[%clk 0:00:51]} 39. Nc5 {[%clk 0:00:00]}  Bb5+ {[%clk 0:00:00]} 40. Kf2 {[%clk 0:00:00]}  Bf8 {[%clk 0:00:00]} 41. a4 {[%clk 0:00:00]}  Be8 {[%clk 0:00:00]} 42. d7 {[%clk 0:00:00]}  Bxc5+ {[%clk 0:00:00]} 43. bxc5 {[%clk 0:00:00]}  Bxd7 {[%clk 0:00:00]} 44. c6 {[%clk 0:00:00]}  Bc8 {[%clk 0:00:00]} 45. Ke3 {[%clk 0:00:00]}  Kg7 {[%clk 0:00:00]} 46. a5 {[%clk 0:00:00]}  Kf6 {[%clk 0:00:00]} 47. Kf4 {[%clk 0:00:00]}  Bf5 {[%clk 0:00:00]} 48. Bf3 {[%clk 0:00:00]}  Bc8 {[%clk 0:00:00]} 49. g4 {[%clk 0:00:00]}  Ke7 {[%clk 0:00:00]} 50. gxh5 {[%clk 0:00:00]}  gxh5 {[%clk 0:00:00]} 51. Bxh5 {[%clk 0:00:00]}  Kd6 {[%clk 0:00:00]} 52. Be8 {[%clk 0:00:00]}  Kd5 {[%clk 0:00:00]} 1-0


[Site "http://www.Chess.com"]

[Event "FIDE World Rapid Chess Championship 2021"]
[White "Kovalev, Vladislav"]
[Black "Thybo, Jesper Sondergaard"]
[WhiteFideId "13504398"]
[BlackFideId "1438832"]
[WhiteElo "2647"]
[BlackElo "2401"]
[Result "1-0"]
[Round "09"]
[TimeControl "900+10"]
[Date "2021.12.27"]
[WhiteClock "0:00:04"]
[BlackClock "0:00:55"]

1. e4 {[%clk 0:15:00]}  e5 {[%clk 0:15:00]} 2. Nf3 {[%clk 0:15:00]}  Nc6 {[%clk 0:15:00]} 3. Bb5 {[%clk 0:15:00]}  Nf6 {[%clk 0:15:00]} 4. O-O {[%clk 0:15:00]}  Nxe4 {[%clk 0:15:00]} 5. Re1 {[%clk 0:15:00]}  Nd6 {[%clk 0:15:00]} 6. Nxe5 {[%clk 0:15:00]}  Be7 {[%clk 0:15:00]} 7. Bf1 {[%clk 0:15:00]}  Nxe5 {[%clk 0:15:00]} 8. Rxe5 {[%clk 0:15:00]}  O-O {[%clk 0:15:00]} 9. d4 {[%clk 0:15:00]}  Bf6 {[%clk 0:15:00]} 10. Re1 {[%clk 0:15:00]}  Nf5 {[%clk 0:15:00]} 11. c3 {[%clk 0:15:00]}  d5 {[%clk 0:15:00]} 12. a4 {[%clk 0:15:00]}  a5 {[%clk 0:15:00]} 13. Bf4 {[%clk 0:15:00]}  Bg5 {[%clk 0:15:16]} 14. Qc1 {[%clk 0:16:06]}  Bxf4 {[%clk 0:15:16]} 15. Qxf4 {[%clk 0:16:06]}  Qd6 {[%clk 0:15:16]} 16. Re5 {[%clk 0:12:40]}  Ne7 {[%clk 0:13:31]} 17. Qf3 {[%clk 0:09:49]}  c6 {[%clk 0:13:31]} 18. Nd2 {[%clk 0:09:45]}  Ng6 {[%clk 0:10:51]} 19. Re3 {[%clk 0:09:45]}  Bd7 {[%clk 0:10:51]} 20. Rae1 {[%clk 0:09:45]}  Rfe8 {[%clk 0:10:51]} 21. g3 {[%clk 0:08:09]}  Re7 {[%clk 0:10:08]} 22. Rxe7 {[%clk 0:05:27]}  Nxe7 {[%clk 0:10:08]} 23. Bd3 {[%clk 0:05:27]}  Ng6 {[%clk 0:10:08]} 24. h4 {[%clk 0:05:07]}  Re8 {[%clk 0:08:28]} 25. Rxe8+ {[%clk 0:05:07]}  Bxe8 {[%clk 0:08:28]} 26. Qe3 {[%clk 0:05:07]}  Bd7 {[%clk 0:08:28]} 27. Nf3 {[%clk 0:03:24]}  Nf8 {[%clk 0:06:05]} 28. Ne5 {[%clk 0:02:51]}  Be6 {[%clk 0:06:05]} 29. h5 {[%clk 0:02:51]}  f6 {[%clk 0:06:05]} 30. Nf3 {[%clk 0:02:51]}  Bg4 {[%clk 0:06:05]} 31. h6 {[%clk 0:02:51]}  g6 {[%clk 0:04:14]} 32. Nd2 {[%clk 0:02:38]}  Be6 {[%clk 0:04:14]} 33. c4 {[%clk 0:01:11]}  b6 {[%clk 0:03:16]} 34. b3 {[%clk 0:01:11]}  Bf7 {[%clk 0:02:14]} 35. c5 {[%clk 0:00:00]}  Qd8 {[%clk 0:02:14]} 36. cxb6 {[%clk 0:00:00]}  Qxb6 {[%clk 0:02:14]} 37. Bf1 {[%clk 0:00:00]}  Ne6 {[%clk 0:02:14]} 38. Nf3 {[%clk 0:00:00]}  c5 {[%clk 0:00:55]} 39. dxc5 {[%clk 0:00:04]}  Qxc5 {[%clk 0:00:55]} 40. Qd2 {[%clk 0:00:04]}  d4 {[%clk 0:00:55]} 41. Bc4 {[%clk 0:00:04]}  Ng5 {[%clk 0:00:55]} 42. Nxg5 {[%clk 0:00:04]}  fxg5 {[%clk 0:00:55]} 43. Qd3 {[%clk 0:00:04]}  Bxc4 {[%clk 0:00:55]} 1-0


[Site "http://www.Chess.com"]

[Event "FIDE World Rapid Chess Championship 2021"]
[White "Ter-Sahakyan, Samvel"]
[Black "Janik, Igor"]
[WhiteFideId "13302531"]
[BlackFideId "1159259"]
[WhiteElo "2573"]
[BlackElo "2462"]
[Result "1/2-1/2"]
[Round "09"]
[TimeControl "900+10"]
[Date "2021.12.27"]
[WhiteClock "0:00:51"]
[BlackClock "0:03:11"]

1. e4 {[%clk 0:15:00]}  c6 {[%clk 0:15:00]} 2. d4 {[%clk 0:15:00]}  d5 {[%clk 0:15:00]} 3. e5 {[%clk 0:15:00]}  c5 {[%clk 0:15:00]} 4. dxc5 {[%clk 0:15:00]}  e6 {[%clk 0:15:00]} 5. a3 {[%clk 0:15:00]}  Bxc5 {[%clk 0:15:00]} 6. Nf3 {[%clk 0:15:00]}  Ne7 {[%clk 0:15:00]} 7. b4 {[%clk 0:15:00]}  Bb6 {[%clk 0:15:00]} 8. Bb2 {[%clk 0:15:00]}  Nbc6 {[%clk 0:15:00]} 9. b5 {[%clk 0:15:00]}  Na5 {[%clk 0:15:40]} 10. Nbd2 {[%clk 0:14:49]}  Bd7 {[%clk 0:15:40]} 11. Bd3 {[%clk 0:14:49]}  Ng6 {[%clk 0:15:40]} 12. g3 {[%clk 0:14:49]}  Qc7 {[%clk 0:15:40]} 13. O-O {[%clk 0:14:49]}  Nc4 {[%clk 0:15:40]} 14. Bxc4 {[%clk 0:13:34]}  dxc4 {[%clk 0:15:40]} 15. Ne4 {[%clk 0:13:34]}  O-O {[%clk 0:15:40]} 16. a4 {[%clk 0:13:34]}  a6 {[%clk 0:15:40]} 17. a5 {[%clk 0:13:34]}  Bxa5 {[%clk 0:15:25]} 18. Rxa5 {[%clk 0:13:34]}  Qxa5 {[%clk 0:15:25]} 19. Qxd7 {[%clk 0:13:34]}  Qxb5 {[%clk 0:15:25]} 20. Qxb5 {[%clk 0:13:34]}  axb5 {[%clk 0:15:25]} 21. Nd6 {[%clk 0:13:34]}  Ra2 {[%clk 0:15:25]} 22. Rb1 {[%clk 0:13:34]}  Ne7 {[%clk 0:15:25]} 23. Nd4 {[%clk 0:13:34]}  b4 {[%clk 0:15:35]} 24. Nxc4 {[%clk 0:10:22]}  Nd5 {[%clk 0:15:35]} 25. Nd6 {[%clk 0:10:22]}  b6 {[%clk 0:15:35]} 26. Nc6 {[%clk 0:10:22]}  Rfa8 {[%clk 0:15:35]} 27. Kg2 {[%clk 0:10:05]}  h6 {[%clk 0:14:02]} 28. h4 {[%clk 0:10:05]}  Nc3 {[%clk 0:14:02]} 29. Bxc3 {[%clk 0:09:01]}  bxc3 {[%clk 0:12:41]} 30. Nd4 {[%clk 0:09:01]}  R8a4 {[%clk 0:12:41]} 31. N6b5 {[%clk 0:09:01]}  Rb2 {[%clk 0:12:41]} 32. Rd1 {[%clk 0:07:03]}  Rc4 {[%clk 0:12:34]} 33. Nb3 {[%clk 0:07:03]}  Re4 {[%clk 0:11:52]} 34. Nxc3 {[%clk 0:02:11]}  Rc4 {[%clk 0:11:52]} 35. Rd3 {[%clk 0:02:11]}  Rxc2 {[%clk 0:11:52]} 36. Nb5 {[%clk 0:02:11]}  Re2 {[%clk 0:11:41]} 37. N3d4 {[%clk 0:00:25]}  Rxe5 {[%clk 0:09:08]} 38. Rb3 {[%clk 0:00:25]}  Rd5 {[%clk 0:09:08]} 39. Nf3 {[%clk 0:00:25]}  Rcc5 {[%clk 0:09:08]} 40. Nbd4 {[%clk 0:00:25]}  b5 {[%clk 0:08:15]} 41. Rb2 {[%clk 0:00:22]}  g6 {[%clk 0:08:15]} 42. Nc2 {[%clk 0:00:22]}  Rc8 {[%clk 0:08:15]} 43. Ne3 {[%clk 0:00:22]}  Rdc5 {[%clk 0:08:15]} 44. Rb4 {[%clk 0:00:22]}  Rd8 {[%clk 0:05:44]} 45. Rb2 {[%clk 0:00:21]}  Kg7 {[%clk 0:05:44]} 46. Nd2 {[%clk 0:00:21]}  b4 {[%clk 0:05:44]} 47. Ndc4 {[%clk 0:00:21]}  Rb8 {[%clk 0:05:44]} 48. Rb3 {[%clk 0:00:21]}  g5 {[%clk 0:05:44]} 49. hxg5 {[%clk 0:00:21]}  hxg5 {[%clk 0:05:44]} 50. Kf3 {[%clk 0:00:21]}  f5 {[%clk 0:05:44]} 51. Nd2 {[%clk 0:00:21]}  Rc3 {[%clk 0:05:44]} 52. Rb2 {[%clk 0:00:21]}  b3 {[%clk 0:05:05]} 53. Ke2 {[%clk 0:00:52]}  f4 {[%clk 0:05:05]} 54. gxf4 {[%clk 0:00:52]}  gxf4 {[%clk 0:05:05]} 55. Ne4 {[%clk 0:00:52]}  Rc7 {[%clk 0:05:05]} 56. Ng4 {[%clk 0:00:52]}  Rb4 {[%clk 0:05:05]} 57. f3 {[%clk 0:00:24]}  Rb5 {[%clk 0:04:24]} 58. Ngf2 {[%clk 0:00:24]}  Rc2+ {[%clk 0:04:24]} 59. Rxc2 {[%clk 0:00:24]}  bxc2 {[%clk 0:04:24]} 60. Nd3 {[%clk 0:00:24]}  Rb3 {[%clk 0:04:24]} 61. Nef2 {[%clk 0:00:24]}  Rc3 {[%clk 0:04:24]} 62. Kd2 {[%clk 0:00:24]}  c1=Q+ {[%clk 0:04:24]} 63. Nxc1 {[%clk 0:00:24]}  Rxf3 {[%clk 0:04:24]} 64. Ncd3 {[%clk 0:00:24]}  Kf6 {[%clk 0:04:24]} 65. Ne4+ {[%clk 0:00:24]}  Kf5 {[%clk 0:04:24]} 66. Nd6+ {[%clk 0:00:51]}  Kg5 {[%clk 0:03:11]} 67. Ne4+ {[%clk 0:00:51]}  Kh4 {[%clk 0:03:11]} 68. Nec5 {[%clk 0:00:51]}  e5 {[%clk 0:03:11]} 69. Nxe5 {[%clk 0:00:51]}  Re3 {[%clk 0:03:11]} 70. Ncd3 {[%clk 0:00:51]}  Kg3 {[%clk 0:03:11]} 71. Ng6 {[%clk 0:00:51]}  Rxd3+ {[%clk 0:03:11]} 72. Kxd3 {[%clk 0:00:51]}  f3 {[%clk 0:03:11]} 73. Ne7 {[%clk 0:00:51]}  f2 {[%clk 0:03:11]} 74. Ke4 {[%clk 0:00:51]} 1/2-1/2


[Site "http://www.Chess.com"]